bitfinex/quotes_ETHUSD_20250724
["timestamp","ask_amount","ask_price","bid_price","bid_amount"]
[1753387187047,3.03344302,3737.7,3736.9,0.8243]
[1753387187245,0.55,3737.6,3736.9,0.8243]
[1753387187445,3.22552555,3737.6,3736.9,0.8243]
[1753387187647,0.55,3737.6,3737.0,0.4611]
[1753387188015,0.55,3737.7,3737.0,0.4611]
[1753387188448,0.60271409,3737.8,3737.0,0.4611]
[1753387188745,0.03343944,3738.1,3737.1,9.6237078]
[1753387188931,0.03343944,3738.1,3737.2,0.4833]
[1753387188932,0.55,3738.0,3737.2,0.4833]
[1753387189137,0.58344034,3738.0,3737.2,0.9444]
[1753387189347,0.55,3738.1,3737.2,0.4833]
[1753387189572,0.56927196,3738.2,3737.3,0.4611]
[1753387189712,0.03343765,3738.3,3737.3,0.4611]
[1753387190065,0.55,3738.3,3737.7,3.47633]
[1753387190209,3.56927196,3738.4,3737.7,3.47633]
[1753387190210,3.56927196,3738.4,3737.7,0.8009]
[1753387190412,0.49560425,3738.3,3737.8,3.61976502]
[1753387190609,0.49560425,3738.3,3737.7,0.8009]
[1753387190610,0.24779785,3738.4,3737.9,0.9444]
[1753387190826,0.4955893,3738.4,3738.0,0.9444]
[1753387191025,3.64425181,3738.7,3738.0,0.9444]
[1753387191317,0.64427519,3738.6,3738.1,0.4611]
[1753387191514,1.21449781,3738.8,3738.1,0.4611]
[1753387191715,0.24779785,3738.7,3738.1,0.4611]
[1753387191914,0.79779785,3738.6,3738.1,0.4611]
[1753387192120,0.55,3738.6,3737.7,14.6063078]
[1753387192427,0.55,3737.8,3737.7,8.60242168]
[1753387192628,0.55,3737.8,3737.7,0.8009]
[1753387193258,0.55,3737.8,3737.7,0.4611]
[1753387193418,0.55,3737.8,3737.4,13.7954078]
[1753387193619,0.24779145,3738.9,3737.8,0.7695]
[1753387193846,3.24779145,3739.0,3737.9,9.6237078]
[1753387194014,0.55,3738.9,3738.3,2.67499134]
[1753387194215,0.55,3738.7,3738.0,3.61961134]
[1753387194557,0.39650864,3739.2,3738.4,9.9142078]
[1753387194753,0.002,3739.5,3738.5,0.9444]
[1753387194925,0.002,3739.5,3739.0,2.67445509]
[1753387195119,0.002,3739.5,3738.9,13.7954078]
[1753387195332,0.002,3739.5,3739.0,0.8059]
[1753387195558,0.002,3739.5,3739.1,7.32738652]
[1753387195735,0.002,3739.5,3739.4,2.67422581]
[1753387196057,0.002,3739.5,3739.4,3.46202581]
[1753387196251,0.002,3739.5,3739.4,4.40642581]
[1753387196458,0.002,3739.5,3739.1,0.4611]
[1753387196646,0.002,3739.5,3739.2,4.652]
[1753387196820,0.002,3739.5,3739.2,5.1131]
[1753387197022,1.0228,3739.5,3739.0,4.65]
[1753387197551,0.55,3739.3,3738.3,0.9444]
[1753387197755,0.83782782,3739.4,3738.3,0.9444]
[1753387197756,0.55,3739.1,3738.3,0.9444]
[1753387197946,0.55,3739.1,3737.9,0.7713]
[1753387197947,0.55,3738.9,3738.0,0.4611]
[1753387198117,0.55,3738.6,3738.1,4.646]
[1753387198320,3.22495504,3738.4,3737.4,0.7669]
[1753387198552,0.55,3738.2,3737.4,0.4611]
[1753387198855,3.22488181,3738.5,3737.5,2.6755266]
[1753387199034,3.55,3738.3,3737.6,0.9444]
[1753387199230,0.4708,3738.5,3737.6,0.4611]
[1753387199544,0.8836,3738.4,3737.1,5.1081]
[1753387199856,3.22538463,3737.8,3737.1,0.4611]
[1753387200072,0.55,3737.6,3737.1,0.4611]
[1753387200359,0.55,3737.4,3737.3,9.1404078]
[1753387200544,0.55,3738.1,3736.8,0.4611]
[1753387200862,0.55,3737.9,3736.9,5.1253]
[1753387201063,3.55,3737.7,3736.9,5.1253]
[1753387201223,0.55,3737.5,3737.1,0.0311]
[1753387201420,0.55,3737.3,3737.1,2.70696912]
[1753387201626,0.55,3737.8,3737.2,0.4833]
[1753387201836,0.55,3737.6,3737.2,0.9444]
[1753387202049,0.55,3737.9,3737.2,0.9444]
[1753387202325,0.03344213,3737.8,3737.2,0.9444]
[1753387202550,0.55,3737.7,3737.2,3.62017521]
[1753387202753,0.4708,3738.7,3737.4,9.1404078]
[1753387202982,0.03343497,3738.6,3737.5,5.5814]
[1753387203163,3.03343497,3738.6,3737.5,5.5814]
[1753387203324,2.70824149,3738.6,3737.5,5.5814]
[1753387203521,0.6836,3737.6,3737.5,5.5814]
[1753387203830,0.6836,3737.6,3737.5,8.25698528]
[1753387204240,0.1336,3737.6,3737.5,8.25698528]
[1753387204445,0.002,3739.0,3737.5,5.5814]
[1753387204732,0.1336,3737.9,3737.8,11.81577833]
[1753387205040,0.1336,3737.9,3737.8,3.61977053]
[1753387205237,0.6836,3737.9,3737.8,3.61977053]
[1753387205440,0.6836,3737.9,3737.3,0.8044]
[1753387205665,0.55,3737.8,3737.4,4.638]
[1753387205848,0.1336,3737.5,3737.4,7.31365687]
[1753387206045,0.002,3738.2,3738.1,3.50705582]
[1753387206254,0.002,3738.2,3738.1,8.14405582]
[1753387206563,0.002,3738.2,3738.1,9.08845582]
[1753387207056,0.002,3738.2,3738.1,4.45145582]
[1753387207249,0.002,3738.2,3738.1,1.7763]
[1753387207443,0.552,3738.2,3738.1,6.4133]
[1753387207648,0.552,3738.2,3737.7,10.8600078]
[1753387207847,0.6836,3737.8,3737.7,4.637]
[1753387208245,0.6836,3737.8,3737.7,8.25684211]
[1753387208867,0.6836,3737.8,3737.7,7.77354211]
[1753387209068,0.6836,3737.8,3737.7,4.637]
[1753387209270,0.6836,3737.8,3737.7,7.77354211]
[1753387209445,0.6836,3737.8,3737.7,3.61984211]
[1753387209767,0.6836,3737.8,3737.7,8.25684211]
[1753387210064,0.6836,3737.8,3737.7,5.5814]
[1753387210649,0.6836,3737.8,3737.7,3.61984211]
[1753387210851,0.6836,3737.8,3737.7,8.25684211]
[1753387211641,0.6836,3737.8,3737.7,5.5814]
[1753387212041,0.6836,3737.8,3737.7,8.25684211]
[1753387215479,0.1336,3737.8,3737.7,8.25684211]
[1753387215688,0.1336,3737.8,3737.7,9.07694211]
[1753387215842,0.002,3738.2,3738.1,2.67515582]
[1753387216047,0.002,3738.2,3738.1,17.26086362]
[1753387216268,0.552,3738.2,3738.1,17.26086362]
[1753387216470,0.002,3738.2,3738.1,18.20546362]
[1753387217179,0.002,3738.2,3738.1,18.33906362]
[1753387217376,0.1336,3738.8,3738.5,2.674815]
[1753387217576,0.1336,3739.3,3738.9,3.44258343]
[1753387217742,0.1336,3739.3,3738.9,8.07958343]
[1753387217948,0.55,3739.2,3738.9,9.02418343]
[1753387218176,0.002,3739.5,3738.9,9.02418343]
[1753387218362,0.1356,3739.5,3738.9,9.15778343]
[1753387218559,0.1356,3739.5,3738.9,4.52078343]
[1753387218763,0.1336,3739.3,3738.9,9.02318343]
[1753387218980,0.55,3739.2,3738.9,9.02318343]
[1753387219681,0.552,3739.0,3738.9,9.02318343]
[1753387220650,0.552,3739.0,3738.9,4.38718343]
[1753387220851,0.552,3739.0,3738.9,9.02318343]
[1753387221251,0.552,3739.0,3738.9,1.7126]
[1753387221483,0.552,3739.0,3738.9,9.02218343]
[1753387222177,0.552,3739.0,3738.9,4.38718343]
[1753387222378,0.552,3739.0,3738.9,9.02218343]
[1753387223392,0.552,3739.0,3738.9,4.38718343]
[1753387223595,0.002,3739.0,3738.9,9.02218343]
[1753387224472,0.002,3739.0,3738.9,9.02118343]
[1753387226900,14.502,3739.0,3738.9,4.38718343]
[1753387227111,0.55,3738.9,3738.5,1.2939]
[1753387227391,14.502,3739.0,3738.6,4.634]
[1753387227392,0.002,3739.0,3738.6,4.634]
[1753387227591,0.002,3739.0,3738.7,7.30867398]
[1753387227778,15.05,3738.8,3738.7,4.634]
[1753387227981,15.1836,3738.8,3738.7,4.634]
[1753387228368,0.55,3738.7,3738.5,0.9446]
[1753387228565,0.55,3738.7,3738.6,4.633]
[1753387228903,0.55,3738.4,3737.6,0.9446]
[1753387229097,0.55,3738.4,3737.8,2.67537053]
[1753387229284,0.55,3738.5,3737.6,8.25305131]
[1753387229597,0.55,3737.7,3737.6,7.30845131]
[1753387229762,0.55,3737.7,3737.6,8.25305131]
[1753387231777,0.55,3737.7,3737.6,5.5776]
[1753387232486,0.55,3737.7,3737.6,8.25311369]
[1753387232690,0.55,3737.7,3737.6,4.633]
[1753387232890,0.55,3737.7,3737.2,2.67579705]
[1753387233184,0.36703765,3738.3,3737.2,2.67579705]
[1753387233185,0.6836,3737.3,3737.2,4.632]
[1753387233390,0.6836,3737.3,3737.2,7.30780006]
[1753387233781,0.6836,3737.3,3737.2,8.25240006]
[1753387235097,0.1336,3737.3,3737.2,8.25240006]
[1753387235405,3.4951,3738.6,3737.7,2.67537674]
[1753387235611,3.4951,3738.6,3737.8,4.632]
[1753387235902,0.55,3738.4,3737.8,4.632]
[1753387236102,0.6836,3737.9,3737.8,4.632]
[1753387236670,15.1836,3737.9,3737.8,4.632]
[1753387237109,0.55,3737.8,3737.3,0.4522]
[1753387237334,0.55,3737.6,3737.0,0.4924]
[1753387237473,0.6836,3737.1,3737.0,4.631]
[1753387237977,0.6836,3737.1,3737.0,7.30694327]
[1753387238299,0.6836,3737.1,3737.0,4.631]
[1753387239723,0.6836,3737.1,3736.2,1.2126]
[1753387239872,4.631,3738.1,3736.1,2.67754423]
[1753387239873,0.1336,3736.4,3736.3,4.632]
[1753387240080,0.6836,3736.4,3736.3,4.632]
[1753387240491,0.6836,3736.4,3736.3,7.30844461]
[1753387240747,7.30523824,3738.0,3736.8,2.67608649]
[1753387241025,7.30523824,3738.0,3736.3,17.39345241]
[1753387241026,0.55,3737.7,3736.3,0.001]
[1753387241208,0.55,3737.0,3736.4,4.63]
[1753387241372,0.55,3737.0,3736.3,0.001]
[1753387241373,3.22610562,3736.8,3736.3,0.001]
[1753387241573,2.67630135,3736.5,3736.3,0.001]
[1753387241800,0.55,3736.4,3736.3,0.001]
[1753387241984,1.3787,3736.4,3736.3,0.001]
[1753387242190,18.55507297,3736.4,3736.3,0.001]
[1753387242407,15.8787,3736.4,3736.3,0.001]
[1753387242822,15.05,3736.4,3736.3,0.001]
[1753387242994,15.5451,3736.4,3736.3,0.001]
[1753387243473,18.22147297,3736.4,3736.3,0.001]
[1753387243683,15.3287,3736.4,3736.1,0.001]
[1753387243884,1.0451,3736.3,3736.1,0.001]
[1753387244079,1.07855555,3736.3,3736.1,0.001]
[1753387244277,3.72161624,3736.2,3736.1,0.001]
[1753387244512,1.3787,3736.2,3736.1,0.001]
[1753387245107,1.0451,3736.2,3736.1,0.001]
[1753387247433,1.07855645,3736.2,3736.1,0.001]
[1753387247635,15.91215645,3736.2,3736.1,0.001]
[1753387247946,15.91215645,3736.2,3735.5,0.001]
[1753387247947,1.608,3733.8,3730.7,0.7864]
[1753387248106,0.004,3735.6,3731.6,0.4761]
[1753387248107,6.22916945,3732.5,3731.6,0.4761]
[1753387248434,0.55,3732.4,3731.7,0.4761]
[1753387248843,2.85100466,3732.4,3731.5,0.9464]
[1753387249023,0.55,3732.1,3731.6,0.4761]
[1753387249206,0.55,3732.1,3731.5,0.4703]
[1753387249409,0.55,3731.9,3731.0,0.4703]
[1753387249621,3.22976155,3731.7,3731.0,0.4703]
[1753387249836,0.55,3731.2,3731.0,0.4703]
[1753387250039,0.55,3731.0,3730.7,0.7864]
[1753387250210,0.55,3731.0,3730.8,0.9464]
[1753387250537,2.68031842,3730.9,3730.8,0.9464]
[1753387250770,2.68031842,3730.9,3730.3,4.629]
[1753387250771,0.55,3730.7,3730.4,0.4761]
[1753387250939,3.23060581,3730.5,3730.4,0.4761]
[1753387251143,0.55,3730.4,3730.3,0.4703]
[1753387251507,0.55,3730.4,3730.3,0.9464]
[1753387251706,1.48688233,3730.4,3730.3,0.9464]
[1753387251932,0.93688233,3730.4,3730.3,3.62714953]
[1753387252141,0.93688233,3730.4,3730.3,8.25814953]
[1753387252343,0.24316106,3731.2,3730.3,8.5774]
[1753387252542,0.46,3732.8,3731.5,0.7895]
[1753387252740,0.24319508,3732.7,3731.6,0.9464]
[1753387252943,0.24319508,3732.6,3731.9,2.6795863]
[1753387253150,0.46,3732.8,3731.9,2.6795863]
[1753387253151,0.24319508,3732.5,3731.9,0.4761]
[1753387253365,0.24319508,3732.4,3731.9,0.4761]
[1753387253654,2.67903726,3732.7,3731.8,2.67964684]
[1753387253655,0.24319508,3732.3,3731.8,2.67964684]
[1753387253859,0.46,3732.8,3732.0,0.4761]
[1753387254031,0.55,3732.5,3731.5,0.7895]
[1753387254261,0.55,3731.9,3731.1,4.631]
[1753387254422,0.55,3731.7,3731.2,2.68004266]
[1753387254617,0.55,3731.7,3731.3,0.4761]
[1753387254822,0.55,3732.0,3731.3,0.4761]
[1753387255122,0.55,3732.0,3731.2,2.68008589]
[1753387255123,0.55,3731.7,3731.1,2.68016583]
[1753387255322,0.55,3731.7,3731.0,2.68024088]
[1753387255733,0.55,3731.8,3731.0,2.68023168]
[1753387255930,0.55,3731.8,3730.9,5.9193]
[1753387256251,0.55,3731.8,3731.1,2.68014112]
[1753387257156,0.55,3731.8,3730.9,3.96860265]
[1753387257459,0.55,3731.8,3731.0,4.632]
[1753387257958,0.55,3732.1,3731.0,5.5784]
[1753387258161,0.55,3732.1,3731.0,5.1023]
[1753387258462,0.55,3732.1,3731.1,3.15626756]
[1753387258757,0.55,3732.1,3731.2,3.15620291]
[1753387258964,1.01,3732.2,3731.3,2.68000881]
[1753387259259,1.01,3732.2,3731.2,2.68008404]
[1753387259260,3.68938659,3732.2,3731.2,2.68008404]
[1753387259770,1.01,3732.2,3731.3,2.68001559]
[1753387259973,1.01,3732.2,3731.4,2.67995806]
[1753387260271,1.01,3732.2,3731.4,2.67994571]
[1753387260427,3.1460501,3732.4,3731.4,2.67994571]
[1753387260428,0.03349141,3732.3,3731.5,0.4761]
[1753387260768,0.46,3732.3,3731.2,5.1081]
[1753387260923,0.58349231,3732.2,3731.3,2.67996777]
[1753387261123,0.58349231,3732.2,3731.2,0.4761]
[1753387261357,0.55,3732.0,3731.2,3.1562021]
[1753387261562,0.55,3732.0,3731.2,0.4761]
[1753387261762,1.26569585,3732.9,3731.3,0.4703]
[1753387261928,4.631,3732.8,3731.3,0.4703]
[1753387262128,2.71244569,3732.8,3731.8,2.67965223]
[1753387262431,0.46,3732.7,3731.8,3.15576024]
[1753387262637,0.1336,3731.9,3731.6,4.631]
[1753387262861,0.6836,3731.7,3731.5,0.4761]
[1753387263031,0.55,3731.6,3731.2,0.9464]
[1753387263220,0.6844,3731.3,3731.2,0.4761]
[1753387263630,0.55,3731.2,3730.9,0.0311]
[1753387263862,0.55,3731.0,3730.9,0.0311]
[1753387264378,0.55,3731.5,3730.9,0.5014]
[1753387264662,0.55,3731.3,3731.0,0.4761]
[1753387264860,0.55,3731.1,3731.0,2.68020591]
[1753387265060,0.55,3731.6,3731.1,2.68015483]
[1753387265220,0.56078129,3731.5,3730.9,3.51101041]
[1753387265424,0.55,3731.3,3731.2,2.68010291]
[1753387265625,1.11078129,3731.3,3731.2,2.68010291]
[1753387265825,1.11078129,3731.3,3731.2,0.9464]
[1753387266229,1.11078129,3731.3,3730.9,0.0311]
[1753387266430,0.55,3731.1,3730.9,0.0311]
[1753387266643,0.56078129,3731.0,3730.9,0.0311]
[1753387267073,1.11078129,3731.0,3730.9,0.0311]
[1753387267779,1.11078129,3731.0,3730.7,0.4761]
[1753387267975,0.55,3730.8,3730.7,2.68046211]
[1753387268474,0.55,3730.8,3730.7,3.62686211]
[1753387268681,1.11198998,3730.8,3730.7,3.62686211]
[1753387268977,1.11198998,3730.8,3730.7,0.4761]
[1753387269277,1.11198998,3730.8,3730.4,3.15774877]
[1753387269479,0.55,3730.6,3730.4,2.68164877]
[1753387269781,1.11198998,3730.5,3730.4,0.001]
[1753387270276,1.11198998,3730.5,3730.4,3.62807767]
[1753387270678,2.2774443,3730.5,3730.4,0.001]
[1753387270840,1.8174443,3730.5,3730.4,0.001]
[1753387271364,1.11198998,3730.5,3730.4,0.001]
[1753387271574,3.79259579,3730.5,3730.4,0.001]
[1753387271775,1.11198998,3730.5,3730.4,0.001]
[1753387272244,1.11198998,3730.5,3730.4,0.4771]
[1753387272442,2.06586981,3730.5,3730.4,0.001]
[1753387272660,4.74647562,3730.5,3730.4,0.001]
[1753387272858,1.11198998,3730.5,3730.4,0.001]
[1753387273044,3.79259579,3730.5,3730.4,0.001]
[1753387273355,4.4974373,3730.5,3730.4,0.001]
[1753387273557,4.9642373,3730.5,3730.4,0.001]
[1753387273864,5.0986373,3730.5,3730.4,0.001]
[1753387274680,5.13214487,3730.5,3730.4,0.001]
[1753387275253,0.55,3729.9,3729.7,0.001]
[1753387275581,1.49123149,3729.8,3729.7,0.001]
[1753387275806,5.11496903,3729.8,3729.7,0.001]
[1753387276075,2.43386013,3729.8,3729.7,0.001]
[1753387276282,1.49123149,3729.8,3729.7,0.001]
[1753387276579,4.66125425,3729.8,3729.7,0.001]
[1753387276781,5.13355425,3729.8,3729.7,0.001]
[1753387277387,0.55,3729.5,3729.1,4.63]
[1753387277593,1.96893023,3729.3,3729.1,4.63]
[1753387277744,0.55,3729.1,3728.4,6.972]
[1753387277944,0.55,3728.4,3727.8,2.68248537]
[1753387278169,0.6844,3727.9,3727.8,7.31154734]
[1753387278354,1.24638998,3727.9,3727.8,7.76274734]
[1753387278554,0.55,3728.4,3728.3,2.68218759]
[1753387278772,1.2519344,3728.4,3728.3,4.39268759]
[1753387278968,1.2519344,3728.4,3728.3,1.7105]
[1753387279246,1.96138696,3728.4,3728.3,4.39268759]
[1753387279471,1.2519344,3728.4,3728.3,4.39268759]
[1753387279668,0.7019344,3728.4,3728.3,4.39268759]
[1753387279881,0.5675344,3728.4,3728.3,9.15608759]
[1753387280780,0.94598867,3729.0,3728.7,2.68189985]
[1753387280996,0.24671896,3728.9,3728.8,8.22362793]
[1753387281150,1.19270763,3728.9,3728.8,8.22362793]
[1753387281550,0.24671896,3728.9,3728.8,8.22362793]
[1753387281851,0.94598867,3729.0,3728.9,2.68175601]
[1753387282091,15.69260487,3729.0,3728.9,3.59455601]
[1753387282301,14.5,3729.0,3728.9,3.59455601]
[1753387283008,15.91893023,3729.0,3728.9,3.59455601]
[1753387283207,14.74661212,3729.0,3728.9,3.59455601]
[1753387283376,14.5,3729.0,3728.9,3.59455601]
[1753387284719,16.40775966,3729.0,3728.9,3.59455601]
[1753387285075,0.55,3728.9,3728.6,0.1344]
[1753387285305,0.55,3728.9,3728.2,0.4512]
[1753387285306,0.6844,3728.9,3728.8,2.68182793]
[1753387285493,0.55,3729.4,3728.9,2.68169767]
[1753387285699,15.05,3729.0,3728.9,5.0896]
[1753387285907,15.43085038,3729.0,3728.9,4.628]
[1753387286232,0.55,3728.9,3728.3,0.7977]
[1753387286374,0.55,3728.9,3728.0,0.4512]
[1753387286375,0.55,3728.7,3728.0,4.627]
[1753387286576,0.55,3728.2,3728.0,7.30934326]
[1753387286776,15.1844,3728.1,3728.0,7.30934326]
[1753387287094,0.55,3728.0,3727.7,4.627]
[1753387287301,0.6844,3727.8,3727.7,7.3096193]
[1753387287516,0.6844,3727.8,3727.7,8.2224193]
[1753387287814,15.1844,3727.8,3727.7,8.2224193]
[1753387288113,14.5,3727.8,3727.7,8.2224193]
[1753387288275,14.5,3727.8,3727.7,8.3568193]
[1753387288473,0.1344,3728.2,3728.1,2.68233148]
[1753387288692,0.1344,3728.5,3728.1,4.627]
[1753387288896,0.24629473,3729.1,3728.5,0.8084]
[1753387289098,0.6844,3728.7,3728.6,0.4616]
[1753387289302,0.6844,3728.7,3728.6,7.76957178]
[1753387289497,15.1844,3728.7,3728.6,8.22077178]
[1753387289711,14.5,3728.7,3728.6,8.22077178]
[1753387290715,14.5,3728.7,3728.6,8.35517178]
[1753387291200,14.5,3728.7,3728.6,3.14357178]
[1753387291513,14.5,3728.7,3728.6,4.36907178]
[1753387292016,14.5,3728.7,3728.6,4.37007178]
[1753387292310,14.5,3728.7,3728.6,4.40117178]
[1753387294233,0.55,3729.5,3728.8,2.68175609]
[1753387294394,0.55,3729.3,3729.0,2.68166224]
[1753387294717,15.05,3729.1,3729.0,0.4616]
[1753387294913,15.29669533,3729.1,3729.0,0.4616]
[1753387295120,0.55,3729.0,3728.6,0.001]
[1753387295330,0.24679358,3728.9,3728.7,4.624]
[1753387295538,0.55,3729.0,3728.7,4.624]
[1753387295731,0.24679468,3728.9,3728.7,4.624]
[1753387295901,0.55,3729.0,3728.7,4.624]
[1753387296099,0.24678734,3728.9,3728.7,4.624]
[1753387296304,0.55,3729.0,3728.7,4.624]
[1753387296596,0.79688341,3728.9,3728.7,5.0856]
[1753387296825,0.55,3728.9,3728.8,2.68182793]
[1753387297000,0.55,3728.9,3728.8,3.59462793]
[1753387297817,0.55,3728.9,3728.8,0.9128]
[1753387297979,0.55,3728.9,3728.8,3.59462793]
[1753387298488,0.55,3728.9,3728.8,3.14342793]
[1753387298929,0.55,3728.8,3728.7,4.623]
[1753387299394,0.55,3728.8,3728.7,7.30489985]
[1753387299721,0.55,3728.8,3728.7,4.623]
[1753387299888,0.55,3728.8,3728.7,7.30489985]
[1753387300087,0.55,3728.8,3728.7,7.76649985]
[1753387300427,0.55,3729.2,3728.7,4.623]
[1753387300585,0.55,3729.0,3728.7,7.75603776]
[1753387300822,0.55,3729.0,3728.8,0.4616]
[1753387300985,0.55,3729.2,3728.8,0.4616]
[1753387301209,0.55,3728.8,3728.7,7.30483776]
[1753387301405,0.55,3728.8,3728.7,4.623]
[1753387301720,0.55,3728.8,3728.7,7.30489985]
[1753387301907,15.05,3728.8,3728.7,7.30489985]
[1753387302109,15.05,3728.8,3728.7,4.623]
[1753387302681,15.05,3728.8,3728.6,2.68295724]
[1753387303021,15.05,3728.8,3728.7,4.622]
[1753387303421,15.1844,3728.8,3728.7,4.622]
[1753387303787,15.1844,3728.8,3728.7,7.30389985]
[1753387304809,15.1844,3728.8,3728.7,8.21669985]
[1753387306391,15.1844,3728.8,3728.7,7.76549985]
[1753387307227,15.1844,3728.8,3728.7,5.0836]
[1753387307597,15.1844,3728.8,3728.7,4.622]
[1753387308101,15.1844,3728.8,3728.7,4.6514]
[1753387308310,15.1844,3728.8,3728.7,7.33329985]
[1753387308505,15.1844,3728.8,3728.7,5.1373]
[1753387308915,15.1844,3728.8,3728.7,7.33329985]
[1753387309114,15.1844,3728.8,3728.7,4.6514]
[1753387309319,15.1844,3728.8,3728.7,0.0294]
[1753387309492,15.1844,3728.8,3728.7,4.6484]
[1753387310335,15.1844,3728.8,3728.7,0.0294]
[1753387310639,18.79362793,3728.8,3728.7,0.0294]
[1753387310827,23.41162793,3728.8,3728.7,0.0294]
[1753387313438,23.41162793,3728.8,3728.7,0.0605]
[1753387314007,23.41362793,3728.8,3728.7,0.0605]
[1753387318931,18.79562793,3728.8,3728.7,0.0605]
[1753387319132,19.7994,3728.8,3728.7,0.0605]
[1753387319734,15.1864,3728.8,3728.7,0.0605]
[1753387320034,15.1864,3728.8,3728.7,0.5464]
[1753387320233,17.86822793,3728.8,3728.7,0.0605]
[1753387321337,15.1864,3728.8,3728.7,0.0605]
[1753387322103,18.79562793,3728.8,3728.7,0.0605]
[1753387322508,15.1864,3728.8,3728.7,0.0605]
[1753387322733,17.86822793,3728.8,3728.7,0.0605]
[1753387323240,18.33342793,3728.8,3728.7,0.0605]
[1753387323539,18.79562793,3728.8,3728.7,0.0605]
[1753387323842,15.052,3728.8,3728.7,0.5464]
[1753387324018,14.502,3728.8,3728.7,1.0101]
[1753387324544,14.502,3728.8,3728.7,3.69199985]
[1753387325106,0.002,3728.8,3728.7,8.30199985]
[1753387325939,0.002,3729.6,3729.5,3.48642457]
[1753387326149,0.002,3729.6,3729.5,8.09542457]
[1753387326302,0.002,3729.6,3729.5,9.04502457]
[1753387327128,0.002,3729.6,3729.5,4.609]
[1753387328034,0.002,3729.6,3729.3,0.4859]
[1753387328226,0.002,3729.6,3729.1,1.291]
[1753387328422,0.002,3729.6,3728.9,0.9496]
[1753387328626,0.55,3729.4,3729.0,4.607]
[1753387329013,0.002,3729.6,3729.0,5.0929]
[1753387329014,0.55,3729.2,3729.0,5.0929]
[1753387329213,0.55,3729.2,3729.1,0.4859]
[1753387330950,1.4774,3729.2,3728.7,4.606]
[1753387331150,1.0152,3729.2,3728.7,4.606]
[1753387331342,1.0152,3729.2,3728.7,5.0919]
[1753387331522,0.55,3729.0,3728.7,5.0919]
[1753387332266,0.55,3729.0,3728.6,0.001]
[1753387332411,14.53352195,3728.9,3728.6,0.001]
[1753387332619,14.9652,3728.9,3728.6,0.001]
[1753387333268,17.64696728,3728.9,3728.6,0.001]
[1753387333559,14.5,3728.9,3728.6,0.001]
[1753387333740,0.6844,3728.7,3728.6,0.001]
[1753387334331,15.1844,3728.7,3728.6,0.001]
[1753387334943,4.603,3729.1,3728.6,1.7827]
[1753387335133,0.1344,3728.8,3728.7,0.4859]
[1753387335332,0.6844,3728.8,3728.7,0.4859]
[1753387335544,15.1844,3728.8,3728.7,0.4859]
[1753387335751,15.1844,3728.8,3728.7,3.16779985]
[1753387335949,15.1844,3728.8,3728.7,3.64229985]
[1753387336248,15.1844,3728.8,3728.7,0.9604]
[1753387336613,15.1844,3728.8,3728.7,3.64229985]
[1753387337436,15.1844,3728.8,3728.7,0.9604]
[1753387338035,0.55,3728.7,3728.6,4.602]
[1753387339033,0.55,3728.7,3728.6,5.0815]
[1753387339462,0.55,3728.7,3728.6,7.76347178]
[1753387339621,0.55,3728.7,3728.6,8.23797178]
[1753387339816,14.6344,3728.8,3728.7,2.68189985]
[1753387340151,0.55,3729.1,3728.6,8.23797178]
[1753387340457,4.599,3729.3,3728.9,2.68175542]
[1753387340627,4.599,3729.5,3729.0,1.7237]
[1753387340830,4.599,3729.5,3729.1,0.954]
[1753387341027,15.05,3729.4,3729.1,0.954]
[1753387341230,0.002,3729.6,3729.3,2.68141951]
[1753387341558,0.002,3729.6,3729.2,0.954]
[1753387341721,14.502,3729.6,3729.3,0.954]
[1753387342062,14.502,3729.6,3729.4,0.954]
[1753387342439,14.502,3729.6,3729.3,4.598]
[1753387342440,0.55,3729.5,3729.3,4.598]
[1753387342962,0.55,3729.5,3729.3,5.0775]
[1753387343162,0.002,3729.6,3729.4,0.4795]
[1753387343725,0.55,3729.5,3729.4,0.4795]
[1753387344663,0.55,3729.5,3729.3,4.598]
[1753387344961,0.002,3729.6,3729.3,5.0775]
[1753387345163,0.002,3729.6,3729.4,0.0294]
[1753387345473,0.55,3729.5,3729.4,0.0294]
[1753387345691,0.55,3729.5,3729.4,0.5089]
[1753387346463,0.55,3729.5,3729.4,0.0294]
[1753387348480,0.002,3729.6,3729.4,0.0294]
[1753387349150,0.55,3729.5,3729.4,0.0294]
[1753387349558,1.608,3729.4,3727.8,0.001]
[1753387349753,0.55,3727.9,3727.8,0.001]
[1753387349971,5.2764,3727.9,3727.8,0.001]
[1753387350383,0.6844,3727.9,3727.8,0.001]
[1753387350684,5.2754,3727.9,3727.8,0.001]
[1753387351659,0.4964,3728.9,3727.8,0.955]
[1753387351858,0.1344,3728.4,3728.3,2.68218759]
[1753387352168,0.6844,3728.4,3728.3,3.63618759]
[1753387353272,0.6844,3728.4,3728.3,0.954]
[1753387353473,0.6844,3728.4,3728.3,0.454]
[1753387354342,0.6844,3728.4,3728.3,3.13618759]
[1753387354846,0.4713,3729.5,3728.3,1.2511]
[1753387355038,0.1344,3729.0,3728.5,0.1344]
[1753387355284,0.1344,3729.0,3728.8,2.68181207]
[1753387355587,0.1344,3729.0,3728.9,0.4795]
[1753387355899,0.6844,3729.0,3728.9,3.16125601]
[1753387356679,4.589,3729.6,3729.1,0.7727]
[1753387356978,0.002,3729.6,3729.3,2.68141389]